[Event "NJSK 2021 Jeugd B"]
[Site "Almelo, Netherlands"]
[Date "2021.08.07"]
[Round "7.6"]
[White "Franke, Daniel"]
[Black "Boeren, Jurriaan"]
[Result "0-1"]
[TimeControl "90min/40moves + 30min + 30sec/move"]
[WhiteElo "1554"]
[BlackElo "1614"]

1. d4 {[%clk 01:30:59]} {[%emt 00:00:36]} d5 {[%clk 01:30:53]} 2. c4 {[%clk
01:31:28]} e6 {[%clk 01:31:17]} 3. Nf3 {[%clk 01:31:55]} c6 {[%clk 01:31:42]} 4.
Nc3 {[%clk 01:32:16]} dxc4 {[%clk 01:32:06]} 5. a4 {[%clk 01:32:32]} Bb4 {[%clk
01:32:29]} 6. e3 {[%clk 01:32:39]} b5 {[%clk 01:32:54]} 7. Bd2 {[%clk
01:32:58]} a5 {[%clk 01:33:20]} 8. axb5 {[%clk 01:29:31]} Bxc3 {[%clk
01:33:42]} 9. Bxc3 {[%clk 01:29:57]} cxb5 {[%clk 01:34:05]} 10. b3 {[%clk
01:29:57]} Bb7 {[%clk 01:34:30]} 11. bxc4 {[%clk 01:27:08]} b4 {[%clk
01:34:42]} 12. Bb2 {[%clk 01:27:23]} Nf6 {[%clk 01:35:05]} 13. Bd3 {[%clk
01:26:52]} O-O 14. Qc2 {[%clk 01:17:26]} {[%emt 00:09:20]} Nbd7 {[%clk
01:32:25]} {[%emt 00:03:30]} 15. e4 {[%clk 01:01:46]} {[%emt 00:16:11]} e5
{[%clk 01:18:13]} {[%emt 00:14:41]} 16. O-O {[%clk 00:57:38]} {[%emt 00:04:37]}
Qc7 {[%clk 01:18:10]} {[%emt 00:00:34]} 17. Nxe5 {[%clk 00:37:27]} {[%emt
00:20:42]} Nxe5 {[%clk 01:18:26]} {[%emt 00:00:12]} 18. dxe5 {[%clk 00:37:54]}
{[%emt 00:00:04]} Ng4 {[%clk 01:17:48]} {[%emt 00:01:08]} 19. h3 {[%clk
00:36:06]} {[%emt 00:02:18]} Nxe5 {[%clk 01:18:11]} {[%emt 00:00:07]} 20. f4
{[%clk 00:36:14]} {[%emt 00:00:23]} Nxd3 {[%clk 01:17:24]} {[%emt 00:01:16]} 21.
Qxd3 {[%clk 00:36:24]} {[%emt 00:00:20]} Rfd8 {[%clk 01:08:26]} {[%emt
00:09:27]} 22. Qg3 {[%clk 00:31:15]} {[%emt 00:05:40]} Qb6+ {[%clk 01:07:28]}
{[%emt 00:01:27]} 23. Kh2 {[%clk 00:23:40]} {[%emt 00:08:06]} Qg6 {[%clk
01:03:21]} {[%emt 00:04:37]} 24. Qxg6 {[%clk 00:19:04]} {[%emt 00:05:06]} hxg6
{[%clk 01:03:45]} {[%emt 00:00:06]} 25. Rfe1 {[%clk 00:18:33]} {[%emt
00:01:00]} Rd2 {[%clk 00:59:29]} {[%emt 00:04:46]} 26. Be5 {[%clk 00:14:33]}
{[%emt 00:04:31]} f6 {[%clk 00:56:11]} {[%emt 00:03:48]} 27. Bc7 {[%clk
00:13:52]} {[%emt 00:01:11]} a4 {[%clk 00:56:20]} {[%emt 00:00:22]} 28. Rab1
{[%clk 00:13:52]} {[%emt 00:00:29]} b3 {[%clk 00:55:33]} {[%emt 00:01:17]} 29.
Bb6 {[%clk 00:13:33]} {[%emt 00:00:50]} f5 {[%clk 00:47:44]} {[%emt 00:08:18]}
30. Be3 {[%clk 00:12:57]} {[%emt 00:01:06]} Rc2 {[%clk 00:47:39]} {[%emt
00:00:34]} 31. Bc1 {[%clk 00:12:46]} {[%emt 00:00:41]} Bxe4 {[%clk 00:47:01]}
{[%emt 00:01:08]} 32. Rg1 {[%clk 00:13:09]} {[%emt 00:00:07]} Re2 {[%clk
00:46:38]} {[%emt 00:00:54]} 0-1

[Event "NJSK 2021 Jeugd B"]
[Site "Almelo, Netherlands"]
[Date "2021.08.07"]
[Round "7.7"]
[White "Wierenga, Jael"]
[Black "Zubair, Saad"]
[Result "1-0"]
[TimeControl "90min/40moves + 30min + 30sec/move"]
[WhiteElo "1565"]
[BlackElo "1645"]

1. d4 {[%clk 01:30:59]} {[%emt 00:00:01]} d5 {[%clk 01:30:58]} {[%emt
00:00:03]} 2. Bf4 {[%clk 01:30:51]} {[%emt 00:00:37]} c5 {[%clk 01:31:22]}
{[%emt 00:00:05]} 3. e3 {[%clk 01:31:15]} {[%emt 00:00:06]} cxd4 {[%clk
01:31:49]} {[%emt 00:00:04]} 4. exd4 {[%clk 01:31:34]} {[%emt 00:00:10]} Nc6
{[%clk 01:32:15]} {[%emt 00:00:05]} 5. Nf3 {[%clk 01:31:09]} {[%emt 00:00:55]}
Bg4 {[%clk 01:32:38]} {[%emt 00:00:07]} 6. Be2 {[%clk 01:29:42]} {[%emt
00:01:57]} f6 {[%clk 01:29:24]} {[%emt 00:08:11]} 7. O-O {[%clk 01:22:27]}
{[%emt 00:03:18]} Qd7 {[%clk 01:29:22]} {[%emt 00:00:32]} 8. Re1 {[%clk
01:21:26]} {[%emt 00:01:30]} a6 {[%clk 01:18:41]} {[%emt 00:11:12]} 9. Nbd2
{[%clk 01:11:45]} {[%emt 00:10:11]} Qf5 {[%clk 01:03:54]} {[%emt 00:15:18]} 10.
Bg3 {[%clk 01:01:13]} {[%emt 00:11:01]} Nh6 {[%clk 00:45:13]} {[%emt 00:19:11]}
11. c4 {[%clk 00:41:44]} {[%emt 00:20:00]} dxc4 {[%clk 00:26:15]} {[%emt
00:19:28]} 12. Nxc4 {[%clk 00:40:05]} {[%emt 00:02:08]} Rd8 {[%clk 00:25:07]}
{[%emt 00:01:38]} 13. Ne3 {[%clk 00:37:00]} {[%emt 00:03:34]} Qe4 {[%clk
00:14:49]} {[%emt 00:10:48]} 14. Nxg4 {[%clk 00:30:36]} {[%emt 00:06:54]} Qxg4
{[%clk 00:14:01]} {[%emt 00:01:18]} 15. Qa4 {[%clk 00:26:58]} {[%emt 00:04:08]}
Qd7 {[%clk 00:09:55]} {[%emt 00:04:37]} 16. Rad1 {[%clk 00:24:52]} {[%emt
00:02:36]} Nf7 {[%clk 00:06:25]} {[%emt 00:03:59]} 17. Qb3 {[%clk 00:20:26]}
{[%emt 00:04:56]} b5 {[%clk 00:05:09]} {[%emt 00:01:46]} 18. a4 {[%clk
00:20:02]} {[%emt 00:00:54]} b4 {[%clk 00:03:37]} {[%emt 00:02:03]} 19. Bxa6
{[%clk 00:48:26]} {[%emt 00:05:55]} 1-0